Cogmind - Beta 9.2 @@@ ROGUE MODE // 2019.11.28 @ 01:59:14 Player: Nalzok Result: Destroyed by Y-54 Guardian with Gatling Laser Performance ------------- Evolutions (3) 1500 Regions Visited (7) 1400 Robots Destroyed (120) 600 Value Destroyed (3670) 3670 Prototype IDs (9) 180 Alien Tech Used (0) 0 Bonus (1458) 1458 TOTAL SCORE: 8808 Bonus ------- High Alert Combat Kills 806 Follower Combat Kills 104 Entered Garrisons 200 Used RIF Installer 500 Friendly Fire -152 Cogmind --------- Core Integrity 0/700 Matter 241/300 Energy 137/150 System Corruption 9% Temperature Cool (480) Movement Walking (180) Ox2 Location -7/Factory Parts ------- > --- POWER (1) -------- Light Angular Momentum Engine > --- PROPULSION (4) --- Carbon-fiber Leg Improved Carbon-fiber Leg Gravmag System Gravmag System > --- UTILITY (6) ------ High-capacity Storage Unit High-capacity Storage Unit Advanced Sensor Array Advanced Signal Interpreter Core Analyzer Energy Filter > --- WEAPON (2) ------- Plasma Cannon Flak Gun > --- INVENTORY (20) --- Light Ion Engine Improved Deuterium Engine Improved Hover Unit Gravmag System Improved Cooling System Large Storage Unit Advanced Signal Interpreter Advanced Signal Interpreter Advanced Signal Interpreter Advanced Signal Interpreter Advanced Signal Interpreter Advanced Signal Interpreter Advanced Signal Interpreter Advanced Signal Interpreter Relay Coupler [NC] (23) Shock Rifle Heavy Laser Improved Light Cannon Bore Cannon Remote Datajack Peak State ------------ > --- POWER ------------ Light Angular Momentum Engine > --- PROPULSION ------- Carbon-fiber Leg Improved Carbon-fiber Leg Gravmag System Gravmag System > --- UTILITY ---------- High-capacity Storage Unit High-capacity Storage Unit Advanced Sensor Array Advanced Signal Interpreter Core Analyzer Energy Filter > --- WEAPON ----------- Plasma Cannon Flak Gun > --- INVENTORY -------- Light Ion Engine Improved Deuterium Engine Gravmag System Improved Cooling System Large Storage Unit Advanced Signal Interpreter Advanced Signal Interpreter Advanced Signal Interpreter Advanced Signal Interpreter Advanced Signal Interpreter Advanced Signal Interpreter Advanced Signal Interpreter Advanced Signal Interpreter Advanced Signal Interpreter Relay Coupler [NC] Shock Rifle Heavy Laser Improved Light Cannon Bore Cannon Remote Datajack [Rating: 50] Favorites ----------- Power Light Nuclear Core Engine Improved Ion Engine Power Core Light Nuclear Core Propulsion Aluminum Leg Treads Advanced Treads Leg Aluminum Leg Hover Unit Gravmag System Utility High-capacity Storage Unit Device Advanced Sensor Array Storage High-capacity Storage Unit Processor Improved Targeting Computer Hackware Hacking Suite Protection Light Armor Plating Weapon Spread Laser Energy Gun Spread Laser Energy Cannon Light EM Pulse Cannon Ballistic Gun Light Assault Rifle Ballistic Cannon Gauss Cannon Launcher Grenade Launcher Special Weapon Remote Datajack Build | -11 -10 -10 -9 -9 -9 -9 -7 ------- Run | Scr Mat Min Mat Sto Gar Rec Fac Slots Evolved 6 | . . . 2 . . . 4 Power . | . . . . . . . . Propulsion 2 | . . . 2 . . . . Utility 4 | . . . . . . . 4 Weapon . | . . . . . . . . Parts Attached 105 | . 6 13 13 10 17 1 45 Power 12 | . 1 3 1 1 3 1 2 Engine 10 | . 1 3 . 1 3 . 2 Core 2 | . . . 1 . . 1 . Reactor . | . . . . . . . . Propulsion 37 | . 2 4 6 2 8 . 15 Treads 9 | . . . 4 2 . . 3 Leg 23 | . 2 4 2 . 8 . 7 Wheel . | . . . . . . . . Hover 5 | . . . . . . . 5 Flight . | . . . . . . . . Utility 20 | . 1 1 2 1 2 . 13 Device 5 | . . 1 . . . . 4 Storage 5 | . . . 1 1 . . 3 Processor 5 | . . . . . 1 . 4 Hackware 2 | . . . 1 . . . 1 Protection 3 | . 1 . . . 1 . 1 Artifact . | . . . . . . . . Weapon 36 | . 2 5 4 6 4 . 15 Energy Gun 6 | . . . 1 1 2 . 2 Energy Cannon 10 | . . . . 3 1 . 6 Ballistic Gun 16 | . 2 5 3 2 1 . 3 Ballistic Cannon 2 | . . . . . . . 2 Launcher 1 | . . . . . . . 1 Special Weapon 1 | . . . . . . . 1 Impact Weapon . | . . . . . . . . Slashing Weapon . | . . . . . . . . Piercing Weapon . | . . . . . . . . Special Melee Weapon . | . . . . . . . . Unidentified Prototypes 4 | . . . . 4 . . . Parts Lost 44 | . 1 1 4 3 5 . 30 Power 3 | . . . . . 1 . 2 Propulsion 13 | . . . 1 2 1 . 9 Utility 7 | . . 1 . . 1 . 5 Weapon 21 | . 1 . 3 1 2 . 14 Highest Loss Streak 20 | . 1 1 1 1 4 . 20 Average Slot Usage (%) 93 | . 91 99 98 92 92 99 89 Engine 7 | . 14 14 9 1 10 9 4 Core 2 | . . . 1 9 . . 1 Treads 10 | . . . 31 37 4 . 2 Leg 21 | . 28 28 11 . 33 44 15 Hover 1 | . . . . . . . 5 Device 3 | . . 2 4 . . . 10 Storage 12 | . 14 14 11 11 11 11 16 Processor 3 | . . . . . . 11 8 Hackware 4 | . . . 6 11 4 . 3 Protection 3 | . 6 10 . . 5 . 2 Energy Gun 5 | . . . 1 1 16 11 2 Energy Cannon 4 | . . . . 17 4 . 2 Ballistic Gun 8 | . 28 28 18 3 . 11 2 Ballistic Cannon 1 | . . . . . . . 5 Naked Turns . | . . . . . . . . Heaviest Build 109 | 9 13 15 25 48 51 45 109 Greatest Support 88 | 20 20 20 88 88 43 43 43 Greatest Overweight (x) 21 | . . . 1 1 4 1 21 Average Overweight (x) . | . . . . . 1 . 2 Largest Inventory Capacity 26 | 6 6 6 10 12 12 12 26 Average Capacity 12 | 6 6 6 9 10 12 12 20 Most Carried 20 | 5 6 6 10 12 12 12 20 Average Carried 10 | 4 4 5 8 10 11 11 12 Final Capacity 20 | 6 6 6 10 12 12 12 20 Final Carried 20 | 2 6 6 10 12 12 11 20 Class Distribution -------------------- 53% | Scavenger-Mutant 42% | Mutant 4% | Hauler-Mutant Dominant Class ---------------- Mutant | -10/Materials Scavenger-Mutant | -10/Mines Mutant | -9/Materials Mutant | -9/Storage Scavenger-Mutant | -9/Garrison Scavenger-Mutant | -9/Recycling Scavenger-Mutant | -7/Factory Resources | -11 -10 -10 -9 -9 -9 -9 -7 ----------- Run | Scr Mat Min Mat Sto Gar Rec Fac Matter Collected 2239 | 200 112 289 226 121 241 158 892 Remotely . | . . . . . . . . Salvage Created 4179 | . 240 361 264 556 734 232 1792 Parts 244 | . 16 30 26 32 45 10 85 Haulers Intercepted . | . . . . . . . . Recyclers Shooed 11 | . . . . . . 5 6 Parts Field Recycled . | . . . . . . . . Retrieved Matter . | . . . . . . . . Parts Self-Destructed . | . . . . . . . . Prevented . | . . . . . . . . Kills | -11 -10 -10 -9 -9 -9 -9 -7 ------- Run | Scr Mat Min Mat Sto Gar Rec Fac Combat Hostiles Destroyed 89 | . 8 8 6 15 24 3 25 Guns 46 | . 8 8 6 3 13 3 5 Cannons 36 | . . . . 11 11 . 14 AOE 6 | . . . . . . . 6 Classes Destroyed 14 | . 2 2 2 . 2 2 4 Worker 9 | . . 2 1 . . . 6 Builder 6 | . . 1 . . . . 5 Recycler 10 | . . . . . . 3 7 Operator 2 | . . . 1 . . . 1 Drone 3 | . . . . . . 3 . Watcher 3 | . . . . . . . 3 Swarmer 23 | . 4 3 1 5 10 . . Grunt 40 | . 4 6 3 6 9 . 12 Brawler 4 | . . . . . 1 . 3 Duelist 3 | . . . . . 1 . 2 Protector 1 | . . . . . . . 1 Sentry 11 | . . . 2 4 3 . 2 Hunter 1 | . . . . . . . 1 Programmer 4 | . . . . . . . 4 Best Kill Streak 8 | . 4 4 2 5 4 3 8 Combat Bots Only 7 | . 4 3 2 5 4 1 7 Max Kills in Single Turn 3 | . 1 2 1 1 1 1 3 Gunslinging 1 | . . 1 . . . . . Exploded 3 | . . . . . . . 3 Melee . | . . . . . . . . Uniques/NPCs Destroyed . | . . . . . . . . Combat | -11 -10 -10 -9 -9 -9 -9 -7 -------- Run | Scr Mat Min Mat Sto Gar Rec Fac Damage Taken 6861 | . 356 488 706 551 890 . 3870 Core 966 | . 64 36 29 79 57 . 701 Absorbed by Shields . | . . . . . . . . Core Remaining (%) 72 | 100 . 60 . . . 58 . Volleys Fired 404 | . 32 35 52 45 89 21 130 Largest 2 | . 2 2 2 2 2 2 2 Hottest 145 | . 40 40 76 112 130 88 145 Shots Fired 698 | . 63 70 92 82 145 41 205 Gun 462 | . 63 70 92 25 91 41 80 Cannon 227 | . . . . 57 54 . 116 Launcher 4 | . . . . . . . 4 Special 5 | . . . . . . . 5 Kinetic 353 | . 63 70 82 23 3 22 90 Thermal 226 | . . . 10 2 106 19 89 Explosive 4 | . . . . . . . 4 Electromagnetic 110 | . . . . 57 36 . 17 Robot Hit Streak 23 | . 8 9 20 9 9 7 23 Robot Miss Streak 12 | . 6 7 4 2 4 12 11 Penetration Max . | . . . . . . . . Secondary Targets 4 | . . 2 1 1 . . . Max Gunslinging Chain 1 | . . 1 1 1 . . . Shots Hit Robots 442 | . 37 40 63 50 89 25 138 Core Hits 268 | . 16 20 19 20 58 20 115 Critical Hits 9 | . . . . . 4 . 5 Critical Kills 3 | . . . . . . . 3 Critical Parts Destroyed 5 | . . . . . 4 . 1 Melee Attacks . | . . . . . . . . Impact . | . . . . . . . . Slashing . | . . . . . . . . Piercing . | . . . . . . . . Sneak Attacks . | . . . . . . . . Combat Hostiles . | . . . . . . . . Follow-up Attacks . | . . . . . . . . Damage Inflicted 8233 | . 356 513 574 847 1344 279 4320 Guns 3731 | . 356 513 573 133 737 258 1161 Cannons 3150 | . . . . 655 573 . 1922 Explosions 1324 | . . . . 59 28 . 1237 Melee . | . . . . . . . . Ramming 28 | . . . 1 . 6 21 . Kinetic 3029 | . 356 513 487 133 12 99 1429 Thermal 3069 | . . . 86 27 878 159 1919 Explosive 775 | . . . . 32 . . 743 Electromagnetic 1332 | . . . . 655 448 . 229 Impact . | . . . . . . . . Slashing . | . . . . . . . . Piercing . | . . . . . . . . Highest Corruption 12 | . . . . . 11 12 9 Average Corruption 9 | . . . . . 10 11 7 Corruption Purged . | . . . . . . . . Effects 136 | . . . . . 48 33 55 Message Errors 24 | . . . . . 4 6 14 Matter Fused 31 | . . . . . 15 6 10 Heat Flow Errors 9 | . . . . . 3 1 5 Energy Discharges 9 | . . . . . 2 3 4 Parts Rejected 2 | . . . . . 1 1 . Data Loss (minor) 12 | . . . . . 3 5 4 Data Loss (major) 7 | . . . . . 1 1 5 Misfires 1 | . . . . . . 1 . Alerts 1 | . . . . . 1 . . Misdirections 11 | . . . . . 6 5 . Targeting Errors 25 | . . . . . 11 4 10 Weapon Failures 4 | . . . . . 1 . 3 Overload Shots . | . . . . . . . . Overflow Damage 63 | . . . . . 3 . 60 Projectiles 6 | . . . . . 3 . 3 Explosions 57 | . . . . . . . 57 Melee . | . . . . . . . . Knockbacks 5 | . . . . . . . 5 Impact . | . . . . . . . . Kinetic 5 | . . . . . . . 5 Secondary . | . . . . . . . . Self-Inflicted Damage 367 | . . . . 54 . . 313 Shots 9 | . . . . 1 . . 8 Rammed 1 | . . . 1 . . . . Targets Rammed 3 | . . . 1 . 1 1 . Kicked 2 | . . . . . 1 1 . Crushed . | . . . . . . . . Highest Temperature 506 | . 41 42 107 153 499 251 506 Average Temperature 105 | . 9 19 25 60 157 72 111 Received Heat Transfer 2400 | . 99 243 234 144 243 . 1437 Effects 14 | . . . . . 11 . 3 Shutdowns 4 | . . . . . 3 . 1 Energy Bleed 3 | . . . . . 3 . . Interference 5 | . . . . . 4 . 1 Short Circuit 2 | . . . . . 1 . 1 Siege Activations . | . . . . . . . . Robots Corrupted 1 | . . . . 1 . . . Combat Hostiles 1 | . . . . 1 . . . Parts Fried 8 | . . . . 3 3 . 2 Impact Corruptions . | . . . . . . . . Robots Melted . | . . . . . . . . Combat Hostiles . | . . . . . . . . Parts Melted 5 | . . . . . 2 . 3 Heat Transferred 4911 | . . . 222 50 1366 195 3078 Parts Sabotaged . | . . . . . . . . Parts Stolen . | . . . . . . . . Parts Stripped . | . . . . . . . . Power Chain Reactions 5 | . . . . 1 2 . 2 Missiles Intercepted . | . . . . . . . . Alert | -11 -10 -10 -9 -9 -9 -9 -7 ------- Run | Scr Mat Min Mat Sto Gar Rec Fac Peak Influence 1129 | . 190 192 135 243 834 457 1129 Average Influence 433 | . 54 120 64 103 529 278 982 Maximum Alert Level 4 | . . . . 1 3 2 4 Low Security (%) 45 | 100 100 100 100 89 12 27 . Level 1 10 | . . . . 10 13 49 . Level 2 11 | . . . . . 39 23 . Level 3 31 | . . . . . 34 . 95 Level 4 1 | . . . . . . . 4 Level 5 . | . . . . . . . . High Security . | . . . . . . . . Max Security . | . . . . . . . . Squads Dispatched 17 | . 2 . 1 4 . . 10 Investigation 2 | . . . 1 1 . . . Extermination 4 | . . . . . . . 4 Reinforcement 7 | . 2 . . 3 . . 2 Assault 4 | . . . . . . . 4 Garrison . | . . . . . . . . Intercept . | . . . . . . . . Construction Impeded 2 | . . . . . . . 2 Haulers Reinforced . | . . . . . . . . Stealth | -11 -10 -10 -9 -9 -9 -9 -7 --------- Run | Scr Mat Min Mat Sto Gar Rec Fac Distress Signals 5 | . 2 . . . . . 3 Communications Jammed . | . . . . . . . . Distress Signals . | . . . . . . . . Times Spotted 172 | . 17 9 18 23 26 33 46 Peak Tracking Total 9 | . 6 3 4 5 5 5 9 Tactical Retreats 9 | . 2 . 1 1 2 . 3 Traps | -11 -10 -10 -9 -9 -9 -9 -7 ------- Run | Scr Mat Min Mat Sto Gar Rec Fac Traps Triggered 6 | . . . . . 5 . 1 Indirectly . | . . . . . . . . Trap Hack Attempts . | . . . . . . . . Triggered . | . . . . . . . . Disarmed . | . . . . . . . . Reprogrammed . | . . . . . . . . Reused . | . . . . . . . . Traps Extracted . | . . . . . . . . Installed . | . . . . . . . . Triggered . | . . . . . . . . Machines | -11 -10 -10 -9 -9 -9 -9 -7 ---------- Run | Scr Mat Min Mat Sto Gar Rec Fac Machines Disabled 14 | . . . . 6 2 1 5 Max in Single Turn 4 | . . . . 1 1 1 4 Garrison Relay 2 | . . . . . 2 . . Machines Sabotaged . | . . . . . . . . Garrisons Compromised . | . . . . . . . . Overloaded Fab Kills . | . . . . . . . . Fab Network Shutdowns . | . . . . . . . . Hacking | -11 -10 -10 -9 -9 -9 -9 -7 --------- Run | Scr Mat Min Mat Sto Gar Rec Fac Machines Accessed 22 | . 1 . 4 7 . 6 4 Terminals 19 | . 1 . 3 6 . 5 4 Fabricators . | . . . . . . . . Repair Stations . | . . . . . . . . Recycling Units 1 | . . . . . . 1 . Scanalyzers 1 | . . . 1 . . . . Garrison Access 1 | . . . . 1 . . . Total Hacks 35 | . 1 . 7 9 . 13 5 Successful 23 | . 1 . 6 5 . 7 4 Failed 12 | . . . 1 4 . 6 1 Catastrophic 3 | . . . . . . 3 . Database Lockouts . | . . . . . . . . Manual . | . . . . . . . . Terminals 28 | . 1 . 4 8 . 10 5 Fabricators . | . . . . . . . . Repair Stations . | . . . . . . . . Recycling Units 3 | . . . . . . 3 . Scanalyzers 3 | . . . 3 . . . . Garrison Access 1 | . . . . 1 . . . Terminal Hacks 17 | . 1 . 3 4 . 5 4 Part Schematic 1 | . . . . . . 1 . Robot Analysis 1 | . . . . . . . 1 Prototype ID Bank 3 | . . . . 1 . 1 1 Open Door 2 | . . . . 2 . . . Branch Access Points 2 | . . . 1 . . . 1 Unreport Threat 5 | . 1 . 2 . . 2 . Locate Traps 1 | . . . . 1 . . . Hauler Manifests 1 | . . . . . . 1 . Registered Components 1 | . . . . . . . 1 Fabricator Hacks . | . . . . . . . . Repair Station Hacks . | . . . . . . . . Recycling Unit Hacks 2 | . . . . . . 2 . Retrieve Components 2 | . . . . . . 2 . Scanalyzer 3 | . . . 3 . . . . Insert Component 1 | . . . 1 . . . . Analyze 2 | . . . 2 . . . . Garrison Access Hacks 1 | . . . . 1 . . . Unlock Access 1 | . . . . 1 . . . Unauthorized Hacks . | . . . . . . . . Terminals . | . . . . . . . . Fabricators . | . . . . . . . . Repair Stations . | . . . . . . . . Recycling Units . | . . . . . . . . Scanalyzers . | . . . . . . . . Garrison Access . | . . . . . . . . Data Cores Recovered 2 | . . . 1 . . . 1 Used 2 | . . . 1 . . . 1 Hacking Detections 14 | . 1 . 4 3 . 4 2 Full Trace Events 4 | . . . 1 1 . 2 . Feedback Events 1 | . . . . . . 1 . Corruption 1 | . . . . . . 1 . Feedback Blocked . | . . . . . . . . Robot Schematics Acquired . | . . . . . . . . Robots Built . | . . . . . . . . Matter . | . . . . . . . . Time . | . . . . . . . . Total Robot Build Rating . | . . . . . . . . Part Schematics Acquired 1 | . . . . . . 1 . Parts Built . | . . . . . . . . Matter . | . . . . . . . . Time . | . . . . . . . . Total Part Build Rating . | . . . . . . . . Parts Repaired . | . . . . . . . . Time . | . . . . . . . . Parts Recycled . | . . . . . . . . Recycled Matter . | . . . . . . . . Retrieved Matter . | . . . . . . . . Retrieved Components . | . . . . . . . . Parts Scanalyzed 1 | . . . 1 . . . . Part Schematics Acquired . | . . . . . . . . Parts Damaged . | . . . . . . . . Bothacking | -11 -10 -10 -9 -9 -9 -9 -7 ------------ Run | Scr Mat Min Mat Sto Gar Rec Fac Used RIF Installer 1 | . . . . . 1 . . Robots Hacked 3 | . . . . . . . 3 Non-combat . | . . . . . . . . Combat 3 | . . . . . . . 3 Robot Hacks Applied 3 | . . . . . . . 3 go_dormant 1 | . . . . . . . 1 streamctrl_high 2 | . . . . . . . 2 Relay Couplers Released 8 | . . . . . 8 . . Machine Destruction 8 | . . . . . 8 . . Attached 1 | . . . . . . . 1 Robots Rewired . | . . . . . . . . Allies Hacked . | . . . . . . . . Hacks Repelled . | . . . . . . . . Allies | -11 -10 -10 -9 -9 -9 -9 -7 -------- Run | Scr Mat Min Mat Sto Gar Rec Fac Total Allies 5 | . . 3 . . . . 2 Largest Group 3 | . . 3 2 . . . 2 Highest-Rated Group 45 | . . 40 32 . . . 45 Highest-Rated Ally 29 | . . 16 16 . . . 29 Total Orders 5 | . . . . 4 1 . . STAY 2 | . . . . 1 1 . . GOTO 1 | . . . . 1 . . . FOLLOW 1 | . . . . 1 . . . EXPLORE 1 | . . . . 1 . . . Ally Attacks 35 | . . 12 20 . . . 3 Total Damage 388 | . . 124 205 . . . 59 Kills 6 | . . 1 5 . . . . Allies Corrupted . | . . . . . . . . Allies Melted . | . . . . . . . . Intel | -11 -10 -10 -9 -9 -9 -9 -7 ------- Run | Scr Mat Min Mat Sto Gar Rec Fac Robot Analysis Total 1 | . . . . . . . 1 Derelict Logs Recovered 2 | . . 2 . . . . . Drone Launches 16 | . . . . 16 . . . Drone Recoveries . | . . . . . . . . Exploration | -11 -10 -10 -9 -9 -9 -9 -7 ------------- Run | Scr Mat Min Mat Sto Gar Rec Fac Turns Passed 6406 | 2 505 526 533 1093 1326 769 1652 Spaces Moved 3253 | 1 332 338 272 569 656 483 602 Core 7 | . . . . . . . 7 Treads 943 | . . . 185 569 76 . 113 Legs 2216 | 1 332 338 87 . 580 483 395 Wheels . | . . . . . . . . Hover 87 | . . . . . . . 87 Flight . | . . . . . . . . Fastest Speed 120 | 120 120 120 120 145 150 120 150 Average Speed 153 | 120 120 120 137 154 156 145 202 Slowest Speed 1100 | 120 120 120 165 172 240 150 1100 Overloaded Moves . | . . . . . . . . Propulsion Burnouts . | . . . . . . . . Robots Hopped . | . . . . . . . . Cave-ins Triggered . | . . . . . . . . Exploration Rate (%) 53 | 2 68 48 24 90 85 93 16 Regions Visited 7 Branch Regions 3 Pre-discovered Areas 1 | . . 1 . . . . . Known Exits Taken 2 | . . . 1 1 . . . Unknown Exits Taken 4 | 1 1 1 . . . 1 . Scrap Searched 1 | . . 1 . . . . . Spaces Dug . | . . . . . . . . Terrain Destroyed 83 | . . . . 11 3 . 69 Melee . | . . . . . . . . Projectile 10 | . . . . . . . 10 AOE 73 | . . . . 11 3 . 59 Actions | -11 -10 -10 -9 -9 -9 -9 -7 --------- Run | Scr Mat Min Mat Sto Gar Rec Fac Total 3991 | 4 384 399 353 706 808 508 829 Wait 91 | . 9 . . 54 15 3 10 Move 3247 | . 331 337 271 569 655 482 602 Hop . | . . . . . . . . Pick Up 56 | . 4 3 8 7 4 . 30 Fast Attach 46 | . 1 . 5 6 11 . 23 Attach 27 | . 1 1 4 1 1 1 18 Detach 7 | . . . 3 1 . . 3 Swap 32 | . 4 12 4 3 5 . 4 Drop 53 | 4 2 11 5 12 10 . 9 Fire 404 | . 32 35 52 45 89 21 130 Melee . | . . . . . . . . Ram . | . . . . . . . . Kick 3 | . . . 1 . 1 1 . Crush . | . . . . . . . . Escape Stasis 17 | . . . . . 17 . . Rewire . | . . . . . . . . Trap . | . . . . . . . . Miscellaneous 8 | . . . . 8 . . . Route ------- -11/Scrapyard -10/Materials -10/Mines -9/Materials (discovered 3 exits: Min x2 / *Sto) -9/Storage -9/Garrison (discovered 3 exits: *Rec x3) -9/Recycling -7/Factory (discovered 2 exits: Low x2) History --------- Turn | Location | Event 3 | -11/Scrapyard | Discovered new exit (range 0) 3 | -11/Scrapyard | Entered Materials 310 | -10/Materials | Build established: Mutant 431 | -10/Materials | Discovered new exit (range 9) 508 | -10/Materials | Entered Mines 644 | -10/Mines | Assisted by bots powering up and referring to "LRC-V3" 768 | -10/Mines | Learned location of Storage (-9) 903 | -10/Mines | Build established: Scavenger-Mutant 971 | -10/Mines | Discovered new exit (range 10) 989 | -10/Mines | Learned 8 Materials zone layouts 1009 | -10/Mines | A weapon hastily lodged in a ceiling crevice suddenly fell to the ground 1034 | -10/Mines | Entered Materials 1034 | -9/Materials | Accompanied by 2 allies 1034 | -9/Materials | Evolved 2 slots: Propulsion x2 1035 | -9/Materials | Identified exit to Storage 1036 | -9/Materials | Identified exit to Mines 1567 | -9/Materials | Entered Storage 2049 | -9/Storage | Build established: Mutant 2645 | -9/Storage | Identified exit to Garrison 2660 | -9/Storage | Entered Garrison 2660 | -9/Garrison | Accompanied by 1 ally 2698 | -9/Garrison | Triggered checkpoint 2720 | -9/Garrison | Garrison Relay disabled 2768 | -9/Garrison | Triggered checkpoint 2830 | -9/Garrison | Triggered checkpoint 3000 | -9/Garrison | Triggered checkpoint 3099 | -9/Garrison | Discovered new exit (range 12) 3236 | -9/Garrison | Triggered checkpoint 3265 | -9/Garrison | System corruption reached 10% 3295 | -9/Garrison | Lost 4 parts (1p1n1u1w) 3350 | -9/Garrison | Build established: Scavenger-Mutant 3410 | -9/Garrison | Triggered checkpoint 3438 | -9/Garrison | Discovered new exit (range 12) 3522 | -9/Garrison | Triggered checkpoint 3748 | -9/Garrison | Discovered new exit (range 13) 3784 | -9/Garrison | Installed Relay Interface Framework 3838 | -9/Garrison | Triggered checkpoint 3882 | -9/Garrison | Garrison Relay disabled 3986 | -9/Garrison | Entered Recycling 3996 | -9/Recycling | Spotter reported a threat 4015 | -9/Recycling | Spotter reported a threat 4057 | -9/Recycling | Spotter reported a threat 4196 | -9/Recycling | Spotter reported a threat 4196 | -9/Recycling | Spotter reported a threat 4210 | -9/Recycling | Spotter reported a threat 4219 | -9/Recycling | Spotter reported a threat 4251 | -9/Recycling | Spotter reported a threat 4254 | -9/Recycling | Spotter reported a threat 4307 | -9/Recycling | Spotter reported a threat 4326 | -9/Recycling | Spotter reported a threat 4336 | -9/Recycling | Spotter reported a threat 4352 | -9/Recycling | Spotter reported a threat 4353 | -9/Recycling | Spotter reported a threat 4360 | -9/Recycling | Spotter reported a threat 4377 | -9/Recycling | Spotter reported a threat 4379 | -9/Recycling | Spotter reported a threat 4384 | -9/Recycling | Spotter reported a threat 4389 | -9/Recycling | Spotter reported a threat 4406 | -9/Recycling | Spotter reported a threat 4413 | -9/Recycling | Spotter reported a threat 4416 | -9/Recycling | Spotter reported a threat 4430 | -9/Recycling | Spotter reported a threat 4432 | -9/Recycling | Spotter reported a threat 4437 | -9/Recycling | Spotter reported a threat 4493 | -9/Recycling | Spotter reported a threat 4509 | -9/Recycling | Spotter reported a threat 4552 | -9/Recycling | Spotter reported a threat 4583 | -9/Recycling | Spotter reported a threat 4605 | -9/Recycling | Spotter reported a threat 4618 | -9/Recycling | Spotter reported a threat 4636 | -9/Recycling | Spotter reported a threat 4648 | -9/Recycling | Spotter reported a threat 4671 | -9/Recycling | Spotter reported a threat 4674 | -9/Recycling | Spotter reported a threat 4689 | -9/Recycling | Spotter reported a threat 4699 | -9/Recycling | Spotter reported a threat 4744 | -9/Recycling | Discovered new exit (range 9) 4748 | -9/Recycling | Spotter reported a threat 4755 | -9/Recycling | Entered Factory 4755 | -7/Factory | Evolved 4 slots: Utility x4 4813 | -7/Factory | Identified exit to Lower Caves 5155 | -7/Factory | First assault squad dispatched 5203 | -7/Factory | Lost 3 parts (1n1u1w) 5277 | -7/Factory | Destroyed 7 combat bots 5303 | -7/Factory | Build established: Mutant 5338 | -7/Factory | Core integrity fell below 50% 5386 | -7/Factory | Core integrity fell below 20% 5440 | -7/Factory | Lost 20 parts (2p4n4u10w) 5709 | -7/Factory | Build established: Hauler-Mutant 6024 | -7/Factory | Build established: Scavenger-Mutant 6407 | -7/Factory | Destroyed by Y-54 Guardian with Gatling Laser Last Messages --------------- 06357_ System corrupted: Flak Gun jammed. 06357_ System corrupted: Plasma Cannon targeting data glitched. 06360_ U-05 Engineer lays Concrete. 06360_ G-47 Trooper destroyed. 06363_ Dropped Imp. Hover Unit. 06363_ Acquired Gravmag System. 06364_ System corrupted: Substantial component data lost. 06366_ Dropped Adv. Signal Interpreter. 06366_ Acquired Imp. Hover Unit. 06367_ R-06 Scavenger collects Imp. Heat Sink. 06371_ R-06 Scavenger collects Particle Gun. 06375_ R-06 Scavenger collects Mace. 06379_ R-06 Scavenger collects Imp. Heat Sink. 06387_ System corrupted: Matter fused (-6). 06391_ Acquired 16 matter. 06400_ System corrupted: Flak Gun jammed. 06400_ System corrupted: Plasma Cannon targeting data glitched. 06402_ U-05 Engineer lays Concrete. 06405_ System corrupted: Heat flow error (+268). 06406_ Power failure, Lgt. Angular Momentum Engine shutdown. Map ----- +----------------------------------------------------+ | ?????????????????????????????????????????????????? | | ?????????????????????????????????????????????????? | | ?????????????????????????????????????????????????? | | ?????????????????????????????????????????????????? | | ?????????????????????????????????????????????????? | | ?????????????????????????????????????????????????? | | ?????????????????????????????????????????????????? | | ???????????????????????????????????????? ??????? | | ???????????????????????????????????????+ ?????? | | ???????????????????????????????????????# #?????? | | ???????????????????????? ?????????????## #?????? | | ???????????????????????#/#???###??##### #?????? | | ???????????????????????#u ??? ?? #?????? | | ???????????????????????# ?? ? #?????? | | ???????????????????????# ? u #?????? | | ???????????????????????# """" """" """" #?????? | | ???????????????????????# """" """" """" #?????? | | ???????????????????????# """" """" """" #?????? | | ???????????????????????# u #?????? | | ???????????????????????# """" """" """" #?###+# | | ??????????????????????## """" """" """" #?# | | ??????????????????????# """" "%"" """" ### | | ??????????????????????# ! % %% | | ??????????????????????# !*[ % ### | | ??????????????????????# = #?# | | ??????????????????????# @##################?### # | | ??????????????????????# #????????????????????# # | | ??????????????????????# #????????????????????# # | | ??????????????????????# #????????????????????#=# | | ?????????????????????? ????????????????????# # | | ????????????????????? ! ????????????????????#!# | | ???????????????????? ????????????????????#% | | ??????????????????? Y ????????????????????### | | ?????????????????? ??????????????????????? | | ?????????????????#### ?????????????########## | | ????????????????????# ????????????# | | ????????????????????####+###????????????# = | | ????????????????????????????????????????# | | ????????????????????????????????????????# | | ????????????????????????????????????????# """""" | | ????????????????????????????????????????# """""" | | ????????????????????????????????????????# """""" | | ?????????????????????????????????????????? """""" | | ?????##############??????>?????????????????####### | | ?????# #????????????????????????# """ " | | ?????# """ """ #????????????????????????# """ " | | ??????? """ """ #????????????????????????# """ " | | ?????# """ """ #????????????????????????# | | ?????# #????????????????????????# | | ?????# """ """ #????????????????????????# | +----------------------------------------------------+ Best States ------------- Heat Dissipation 48 Energy Generation 23 Energy Capacity 280 Matter Stores 300 Matter Capacity 300 Sight Range 16 Robot Scan Range 16 Terrain Scan Density 10 Armor Coverage 150 Utility Shielding 33 Evasion (%) 40 Targeting Accuracy 14 Target Analysis 5 Core Analysis 6 Recoil Reduction 4 Energy Filtering 30 Offensive Hacking 10 Item Schematics ----------------- Hacking Suite | -9/Recycling | Hacked Robot Schematics ------------------ None Fabricated ------------ Nothing Alien Tech Used ----------------- None Achievements -------------- None Challenges ------------ None Game ------ Seed PortableSwarmMatter Manual? 0 Play Time 00:48:19 Cumulative 186.8 hours Start 2019.11.24 @ 22:55:06 End 2019.11.28 @ 01:59:14 Sessions 4 Manual Loads 0 Difficulty Rogue Special Mode None Game No. 305 Rogue 305 Adventurer 0 Explorer 0 Win Type - Total 0 Types 0/0/0/0/0/0/0 Lore% 58 Gallery% 73 Achievement% 44 Wizard Run 0 Options --------- ASCII 1 Keyboard 1 Movement Vi Keybinds 0 Fullscreen 1 Font 14/Cog Map View 72x52 Tactical HUD 1 Map Filters NONE Filters LOW_CONTRAST(13,24,33) Steam 0 RUN: 7355326c-359b-4ea1-ac05-e5e292bf72c0